[Event "NJSK 2018 Jeugd C"]
[Site "Assen, Netherlands"]
[Date "2018.05.04"]
[Round "8.7"]
[White "Boghossian, Wahe"]
[Black "Bartels, Vladimir"]
[Result "1-0"]
[TimeControl "40/90m+30sec/move"]
[WhiteElo "1748"]
[BlackElo "1757"]

1. e4 {[%clk 01:30:49]} {[%emt 00:00:09]} e5 {[%clk 01:30:56]} {[%emt
00:00:05]} 2. Nf3 {[%clk 01:31:16]} {[%emt 00:00:03]} Nc6 {[%clk 01:31:21]}
{[%emt 00:00:05]} 3. d4 {[%clk 01:31:44]} {[%emt 00:00:02]} exd4 {[%clk
01:31:40]} {[%emt 00:00:11]} 4. Bc4 {[%clk 01:32:05]} {[%emt 00:00:10]} Bc5
{[%clk 01:31:52]} {[%emt 00:00:18]} 5. c3 {[%clk 01:32:23]} {[%emt 00:00:11]}
dxc3 {[%clk 01:18:32]} {[%emt 00:13:50]} 6. Bxf7+ {[%clk 01:32:10]} {[%emt
00:00:44]} Kxf7 {[%clk 01:12:45]} {[%emt 00:06:17]} 7. Qd5+ {[%clk 01:32:30]}
{[%emt 00:00:09]} Ke8 {[%clk 01:12:38]} {[%emt 00:00:38]} 8. Qxc5 {[%clk
01:32:26]} {[%emt 00:00:34]} d6 {[%clk 01:09:41]} {[%emt 00:03:27]} 9. Qxc3
{[%clk 01:32:12]} {[%emt 00:00:44]} Nf6 {[%clk 01:04:47]} {[%emt 00:05:24]} 10.
Nbd2 {[%clk 01:28:33]} {[%emt 00:04:08]} h6 {[%clk 00:55:06]} {[%emt 00:10:12]}
11. O-O {[%clk 01:26:57]} {[%emt 00:02:05]} Be6 {[%clk 00:54:58]} {[%emt
00:00:38]} 12. Re1 {[%clk 01:25:12]} {[%emt 00:02:15]} Kf7 {[%clk 00:52:46]}
{[%emt 00:02:43]} 13. Nb3 {[%clk 01:17:39]} {[%emt 00:08:03]} Re8 {[%clk
00:43:07]} {[%emt 00:10:09]} 14. h3 {[%clk 01:14:47]} {[%emt 00:03:22]} d5
{[%clk 00:34:37]} {[%emt 00:09:01]} 15. Nc5 {[%clk 01:01:03]} {[%emt 00:14:13]}
b6 {[%clk 00:18:11]} {[%emt 00:16:56]} 16. Na6 {[%clk 00:54:13]} {[%emt
00:07:20]} Qd7 {[%clk 00:11:38]} {[%emt 00:07:03]} 17. Qxc6 {[%clk 00:53:34]}
{[%emt 00:01:09]} Qxc6 {[%clk 00:11:04]} {[%emt 00:01:05]} 18. Ne5+ {[%clk
00:53:57]} {[%emt 00:00:06]} Ke7 {[%clk 00:11:28]} {[%emt 00:00:05]} 19. Nxc6+
{[%clk 00:53:59]} {[%emt 00:00:28]} Kd6 {[%clk 00:11:51]} {[%emt 00:00:07]} 20.
e5+ {[%clk 00:53:57]} {[%emt 00:00:33]} Kxc6 {[%clk 00:11:40]} {[%emt
00:00:42]} 21. exf6 {[%clk 00:54:14]} {[%emt 00:00:12]} gxf6 {[%clk 00:10:41]}
{[%emt 00:01:29]} 22. Bf4 {[%clk 00:54:26]} {[%emt 00:00:17]} 1-0

[Event "NJSK 2018 Jeugd C"]
[Site "Assen, Netherlands"]
[Date "2018.05.04"]
[Round "8.8"]
[White "Roebers, Eline"]
[Black "Cchung, Nyuk Lyn"]
[Result "1/2-1/2"]
[TimeControl "40/90m+30sec/move"]
[WhiteElo "1961"]
[BlackElo "1796"]

1. e4 {[%clk 01:30:58]} {[%emt 00:00:01]} c5 {[%clk 01:30:54]} {[%emt
00:00:06]} 2. Nf3 {[%clk 01:31:22]} {[%emt 00:00:05]} d6 {[%clk 01:31:19]}
{[%emt 00:00:05]} 3. Nc3 {[%clk 01:31:39]} {[%emt 00:00:13]} Nf6 {[%clk
01:31:40]} {[%emt 00:00:08]} 4. e5 {[%clk 01:32:04]} {[%emt 00:00:06]} dxe5
{[%clk 01:31:28]} {[%emt 00:00:42]} 5. Nxe5 {[%clk 01:32:16]} {[%emt 00:00:18]}
e6 {[%clk 01:31:23]} {[%emt 00:00:35]} 6. g3 {[%clk 01:30:01]} {[%emt
00:02:45]} Bd6 {[%clk 01:31:16]} {[%emt 00:00:37]} 7. Nc4 {[%clk 01:29:55]}
{[%emt 00:00:36]} Nc6 {[%clk 01:30:27]} {[%emt 00:01:19]} 8. Bg2 {[%clk
01:27:33]} {[%emt 00:02:51]} O-O {[%clk 01:28:54]} {[%emt 00:02:03]} 9. O-O
{[%clk 01:27:06]} {[%emt 00:00:57]} Ne5 {[%clk 01:27:43]} {[%emt 00:01:41]} 10.
d3 {[%clk 01:24:15]} {[%emt 00:03:22]} Nxc4 {[%clk 01:26:07]} {[%emt 00:02:06]}
11. dxc4 {[%clk 01:24:37]} {[%emt 00:00:08]} Qe7 {[%clk 01:25:29]} {[%emt
00:01:07]} 12. Qe2 {[%clk 01:21:17]} {[%emt 00:03:51]} h6 {[%clk 01:21:51]}
{[%emt 00:04:08]} 13. Be3 {[%clk 01:19:08]} {[%emt 00:02:38]} a6 {[%clk
01:19:54]} {[%emt 00:02:28]} 14. a4 {[%clk 01:14:29]} {[%emt 00:05:08]} Rb8
{[%clk 01:15:24]} {[%emt 00:05:01]} 15. Rfd1 {[%clk 01:11:35]} {[%emt
00:03:24]} Rd8 {[%clk 01:12:07]} {[%emt 00:03:47]} 16. Rd2 {[%clk 01:07:00]}
{[%emt 00:05:06]} Bd7 {[%clk 01:04:10]} {[%emt 00:08:27]} 17. Rad1 {[%clk
01:00:52]} {[%emt 00:06:37]} Be5 {[%clk 00:59:48]} {[%emt 00:04:52]} 18. Bf4
{[%clk 00:54:04]} {[%emt 00:07:17]} Bxf4 {[%clk 00:54:05]} {[%emt 00:06:14]} 19.
gxf4 {[%clk 00:53:55]} {[%emt 00:00:39]} Re8 {[%clk 00:50:51]} {[%emt
00:03:44]} 20. b3 {[%clk 00:48:04]} {[%emt 00:06:22]} Bc6 {[%clk 00:41:44]}
{[%emt 00:09:36]} 21. Bxc6 {[%clk 00:43:35]} {[%emt 00:04:59]} bxc6 {[%clk
00:42:13]} {[%emt 00:00:02]} 22. Ne4 {[%clk 00:41:24]} {[%emt 00:02:41]} Nxe4
{[%clk 00:38:24]} {[%emt 00:04:20]} 23. Qxe4 {[%clk 00:41:49]} {[%emt
00:00:06]} e5 {[%clk 00:28:52]} {[%emt 00:10:02]} 24. fxe5 {[%clk 00:35:46]}
{[%emt 00:06:33]} Qg5+ {[%clk 00:26:48]} {[%emt 00:02:33]} 25. Kh1 {[%clk
00:34:02]} {[%emt 00:02:14]} Rxe5 {[%clk 00:26:58]} {[%emt 00:00:21]} 26. Rd8+
{[%clk 00:29:46]} {[%emt 00:04:46]} Rxd8 {[%clk 00:27:10]} {[%emt 00:00:18]} 27.
Rxd8+ {[%clk 00:30:11]} {[%emt 00:00:05]} Qxd8 {[%clk 00:27:34]} {[%emt
00:00:06]} 28. Qxe5 {[%clk 00:30:38]} {[%emt 00:00:03]} Qd1 {[%clk 00:26:15]}
{[%emt 00:01:49]} 29. Kg2 {[%clk 00:31:01]} {[%emt 00:00:06]} Qg4+ {[%clk
00:25:09]} {[%emt 00:01:35]} 30. Kf1 {[%clk 00:29:58]} {[%emt 00:01:34]} Qd1+
{[%clk 00:25:08]} {[%emt 00:00:31]} 31. Kg2 {[%clk 00:29:24]} {[%emt 00:01:04]}
Qg4+ {[%clk 00:24:55]} {[%emt 00:00:44]} 32. Kf1 {[%clk 00:29:43]} {[%emt
00:00:10]} Qd1+ {[%clk 00:24:22]} {[%emt 00:01:02]} 33. Kg2 {[%emt 00:00:41]}
1/2-1/2

[Event "NJSK 2018 Jeugd C"]
[Site "Assen, Netherlands"]
[Date "2018.05.04"]
[Round "8.9"]
[White "Labruyere, Roger"]
[Black "Van der Hagen, Loek"]
[Result "1-0"]
[TimeControl "40/90m+30sec/move"]
[WhiteElo "1665"]
[BlackElo "1815"]

1. e4 {[%clk 01:30:47]} {[%emt 00:00:13]} c5 {[%clk 01:30:55]} {[%emt
00:00:06]} 2. c3 {[%clk 01:31:15]} {[%emt 00:00:02]} d5 {[%clk 01:31:16]}
{[%emt 00:00:08]} 3. exd5 {[%clk 01:31:42]} {[%emt 00:00:04]} Qxd5 {[%clk
01:31:40]} {[%emt 00:00:06]} 4. Nf3 {[%clk 01:32:03]} {[%emt 00:00:08]} Nf6
{[%clk 01:31:49]} {[%emt 00:00:20]} 5. d4 {[%clk 01:32:00]} {[%emt 00:00:34]}
Bg4 {[%clk 01:32:01]} {[%emt 00:00:18]} 6. Be2 {[%clk 01:32:23]} {[%emt
00:00:06]} Nc6 {[%clk 01:31:29]} {[%emt 00:01:02]} 7. Be3 {[%clk 01:32:21]}
{[%emt 00:00:32]} cxd4 {[%clk 01:30:48]} {[%emt 00:01:12]} 8. cxd4 {[%clk
01:32:02]} {[%emt 00:00:49]} e6 {[%clk 01:30:57]} {[%emt 00:00:21]} 9. Nc3
{[%clk 01:32:24]} {[%emt 00:00:07]} Qd8 {[%clk 01:28:02]} {[%emt 00:03:26]} 10.
h3 {[%clk 01:32:09]} {[%emt 00:00:45]} Bh5 {[%clk 01:27:10]} {[%emt 00:01:22]}
11. O-O {[%clk 01:31:56]} {[%emt 00:00:42]} Be7 {[%clk 01:27:30]} {[%emt
00:00:10]} 12. Qb3 {[%clk 01:31:37]} {[%emt 00:00:50]} Qc7 {[%clk 01:20:14]}
{[%emt 00:07:46]} 13. Nb5 {[%clk 01:30:26]} {[%emt 00:01:41]} Qd7 {[%clk
01:19:17]} {[%emt 00:01:27]} 14. Rfd1 {[%clk 01:24:35]} {[%emt 00:06:20]} Nd5
{[%clk 01:15:14]} {[%emt 00:04:34]} 15. Rac1 {[%clk 01:21:38]} {[%emt
00:03:26]} O-O {[%clk 01:13:57]} {[%emt 00:01:47]} 16. Na3 {[%clk 01:06:59]}
{[%emt 00:15:09]} Na5 {[%clk 01:03:45]} {[%emt 00:10:42]} 17. Qb5 {[%clk
00:58:38]} {[%emt 00:08:51]} Qxb5 {[%clk 01:03:04]} {[%emt 00:01:12]} 18. Nxb5
{[%clk 00:58:29]} {[%emt 00:00:38]} Nc6 {[%clk 01:02:44]} {[%emt 00:00:50]} 19.
Kf1 {[%clk 00:57:47]} {[%emt 00:01:12]} f6 {[%clk 00:59:40]} {[%emt 00:03:34]}
20. g4 {[%clk 00:56:33]} {[%emt 00:01:42]} Bg6 {[%clk 00:57:04]} {[%emt
00:03:08]} 21. Bc4 {[%clk 00:55:11]} {[%emt 00:01:52]} Rad8 {[%clk 00:45:04]}
{[%emt 00:12:31]} 22. Bxd5 {[%clk 00:53:12]} {[%emt 00:02:29]} exd5 {[%clk
00:35:26]} {[%emt 00:10:07]} 23. a3 {[%clk 00:50:59]} {[%emt 00:02:43]} a6
{[%clk 00:32:49]} {[%emt 00:03:07]} 24. Nc7 {[%clk 00:48:48]} {[%emt 00:02:42]}
Kf7 {[%clk 00:28:43]} {[%emt 00:04:35]} 25. Nxa6 {[%clk 00:44:34]} {[%emt
00:04:44]} Nxd4 {[%clk 00:24:28]} {[%emt 00:04:45]} 26. Nxd4 {[%clk 00:42:09]}
{[%emt 00:02:54]} bxa6 {[%clk 00:24:50]} {[%emt 00:00:10]} 27. Nc6 {[%clk
00:42:31]} {[%emt 00:00:07]} Rd6 {[%clk 00:14:42]} {[%emt 00:10:38]} 28. Nxe7
{[%clk 00:42:42]} {[%emt 00:00:19]} Kxe7 {[%clk 00:15:07]} {[%emt 00:00:05]} 29.
Bc5 {[%clk 00:42:49]} {[%emt 00:00:24]} Rb8 {[%clk 00:14:25]} {[%emt 00:01:11]}
30. Rxd5 {[%clk 00:42:51]} {[%emt 00:00:28]} Rbb6 {[%clk 00:13:30]} {[%emt
00:01:25]} 31. Rxd6 {[%clk 00:43:08]} {[%emt 00:00:12]} Rxd6 {[%clk 00:13:37]}
{[%emt 00:00:24]} 32. Rd1 {[%clk 00:43:34]} {[%emt 00:00:04]} 1-0

[Event "NJSK 2018 Jeugd C"]
[Site "Assen, Netherlands"]
[Date "2018.05.04"]
[Round "8.10"]
[White "Franke, Daniel"]
[Black "Albers, Sasa"]
[Result "1/2-1/2"]
[TimeControl "40/90m+30sec/move"]
[WhiteElo "1298"]
[BlackElo "1336"]

1. d4 {[%clk 01:30:59]} d5 {[%clk 01:30:59]} {[%emt 00:00:02]} 2. c4 {[%clk
01:31:25]} {[%emt 00:00:05]} c6 {[%clk 01:31:24]} {[%emt 00:00:04]} 3. Nc3
{[%clk 01:31:51]} {[%emt 00:00:03]} Nf6 {[%clk 01:31:49]} {[%emt 00:00:05]} 4.
Nf3 {[%clk 01:32:19]} {[%emt 00:00:02]} e6 {[%clk 01:32:05]} {[%emt 00:00:14]}
5. Bg5 {[%clk 01:32:45]} {[%emt 00:00:04]} Be7 {[%clk 01:32:26]} {[%emt
00:00:09]} 6. e3 {[%clk 01:33:12]} {[%emt 00:00:03]} O-O {[%clk 01:32:42]}
{[%emt 00:00:14]} 7. Bd3 {[%clk 01:33:30]} {[%emt 00:00:13]} Nbd7 {[%clk
01:32:51]} {[%emt 00:00:21]} 8. O-O {[%clk 01:32:26]} {[%emt 00:01:34]} h6
{[%clk 01:32:44]} {[%emt 00:00:37]} 9. Bf4 {[%clk 01:30:33]} {[%emt 00:02:23]}
Nh5 {[%clk 01:30:57]} {[%emt 00:02:21]} 10. Ne2 {[%clk 01:24:38]} {[%emt
00:06:21]} Nxf4 {[%clk 01:25:48]} {[%emt 00:05:38]} 11. Nxf4 {[%clk 01:24:18]}
{[%emt 00:00:51]} Bd6 {[%clk 01:21:09]} {[%emt 00:05:08]} 12. Ne2 {[%clk
01:22:33]} {[%emt 00:02:15]} Re8 {[%clk 01:20:18]} {[%emt 00:01:21]} 13. Qc2
{[%clk 01:17:12]} {[%emt 00:05:51]} Nf6 {[%clk 01:15:36]} {[%emt 00:05:12]} 14.
Nc3 {[%clk 01:13:16]} {[%emt 00:04:26]} Bd7 {[%clk 01:04:59]} {[%emt 00:11:08]}
15. e4 {[%clk 01:09:34]} {[%emt 00:04:11]} dxe4 {[%clk 01:03:40]} {[%emt
00:01:49]} 16. Nxe4 {[%clk 01:09:47]} {[%emt 00:00:17]} Nxe4 {[%clk 00:58:47]}
{[%emt 00:05:22]} 17. Bxe4 {[%clk 01:10:09]} {[%emt 00:00:10]} e5 {[%clk
00:53:54]} {[%emt 00:05:23]} 18. dxe5 {[%clk 01:07:26]} {[%emt 00:03:12]} Bxe5
{[%clk 00:54:08]} {[%emt 00:00:15]} 19. Nxe5 {[%clk 01:07:29]} {[%emt
00:00:27]} Rxe5 {[%clk 00:54:19]} {[%emt 00:00:19]} 20. Rfe1 {[%clk 01:02:45]}
{[%emt 00:05:15]} Qe7 {[%clk 00:50:58]} {[%emt 00:03:52]} 21. Bh7+ {[%clk
00:39:15]} {[%emt 00:23:59]} Kh8 {[%clk 00:50:50]} {[%emt 00:00:37]} 22. Rxe5
{[%clk 00:39:27]} {[%emt 00:00:18]} Qxe5 {[%clk 00:51:10]} {[%emt 00:00:10]} 23.
Bd3 {[%clk 00:39:41]} {[%emt 00:00:17]} Re8 {[%clk 00:47:41]} {[%emt 00:03:59]}
24. h3 {[%clk 00:37:18]} {[%emt 00:02:53]} Qg5 {[%clk 00:46:12]} {[%emt
00:01:58]} 25. Kh1 {[%clk 00:31:56]} {[%emt 00:05:53]} Qh4 {[%clk 00:37:58]}
{[%emt 00:08:42]} 26. Kh2 {[%clk 00:24:40]} {[%emt 00:07:47]} c5 {[%clk
00:36:12]} {[%emt 00:02:17]} 27. Rd1 {[%clk 00:20:50]} {[%emt 00:04:21]} Bc6
{[%clk 00:33:07]} {[%emt 00:03:34]} 28. Qd2 {[%clk 00:15:38]} {[%emt 00:05:42]}
1/2-1/2

[Event "NJSK 2018 Jeugd C"]
[Site "Assen, Netherlands"]
[Date "2018.05.04"]
[Round "8.11"]
[White "Torensma, Christian"]
[Black "Van Foreest, Nanne"]
[Result "1/2-1/2"]
[TimeControl "40/90m+30sec/move"]
[WhiteElo "1455"]
[BlackElo "1482"]

1. e4 {[%clk 01:30:59]} {[%emt 00:00:01]} e5 {[%clk 01:30:52]} {[%emt
00:00:08]} 2. Nf3 {[%clk 01:31:25]} {[%emt 00:00:04]} Nc6 {[%clk 01:31:19]}
{[%emt 00:00:04]} 3. Bb5 {[%clk 01:31:49]} {[%emt 00:00:06]} Nf6 {[%clk
01:31:44]} {[%emt 00:00:05]} 4. O-O {[%clk 01:32:12]} {[%emt 00:00:06]} Nxe4
{[%clk 01:32:10]} {[%emt 00:00:04]} 5. Qe2 {[%clk 01:32:29]} {[%emt 00:00:12]}
Nd6 {[%clk 01:32:28]} {[%emt 00:00:13]} 6. Bxc6 {[%clk 01:32:52]} {[%emt
00:00:07]} dxc6 {[%clk 01:32:44]} {[%emt 00:00:14]} 7. Qxe5+ {[%clk 01:33:09]}
{[%emt 00:00:13]} Be6 {[%clk 01:32:40]} {[%emt 00:00:34]} 8. Nd4 {[%clk
01:33:18]} {[%emt 00:00:21]} Qd7 {[%clk 01:32:56]} {[%emt 00:00:14]} 9. Nxe6
{[%clk 01:32:11]} {[%emt 00:01:37]} fxe6 {[%clk 01:32:23]} {[%emt 00:01:03]} 10.
Re1 {[%clk 01:31:55]} {[%emt 00:00:46]} Kf7 {[%clk 01:27:34]} {[%emt 00:05:20]}
11. d3 {[%clk 01:27:48]} {[%emt 00:04:36]} Be7 {[%clk 01:27:11]} {[%emt
00:00:54]} 12. Nd2 {[%clk 01:17:39]} {[%emt 00:10:38]} Bf6 {[%clk 01:25:35]}
{[%emt 00:02:06]} 13. Qh5+ {[%clk 01:17:08]} {[%emt 00:01:01]} g6 {[%clk
01:25:40]} {[%emt 00:00:26]} 14. Qe2 {[%clk 01:15:54]} {[%emt 00:01:43]} Rae8
{[%clk 01:25:46]} {[%emt 00:00:24]} 15. Nf3 {[%clk 01:14:54]} {[%emt 00:01:30]}
Kg7 {[%clk 01:15:37]} {[%emt 00:10:40]} 16. Qe3 {[%clk 01:06:20]} {[%emt
00:09:04]} Nf5 {[%clk 01:15:47]} {[%emt 00:00:20]} 17. Qxa7 {[%clk 00:57:07]}
{[%emt 00:09:43]} Ra8 {[%clk 00:59:58]} {[%emt 00:16:19]} 18. Qc5 {[%clk
00:56:47]} {[%emt 00:00:50]} Ra4 {[%clk 00:54:44]} {[%emt 00:05:44]} 19. Ne5
{[%clk 00:39:09]} {[%emt 00:18:08]} Qd4 {[%clk 00:49:38]} {[%emt 00:05:36]} 20.
Qc3 {[%clk 00:32:50]} {[%emt 00:06:49]} Rha8 {[%clk 00:42:31]} {[%emt
00:07:38]} 21. a3 {[%clk 00:31:02]} {[%emt 00:02:18]} Qxc3 {[%clk 00:40:38]}
{[%emt 00:02:22]} 22. bxc3 {[%clk 00:31:20]} {[%emt 00:00:12]} R8a5 {[%clk
00:39:29]} {[%emt 00:01:39]} 23. f4 {[%clk 00:25:42]} {[%emt 00:06:06]} g5
{[%clk 00:37:35]} {[%emt 00:02:26]} 1/2-1/2

[Event "NJSK 2018 Jeugd C"]
[Site "Assen, Netherlands"]
[Date "2018.05.04"]
[Round "8.12"]
[White "Tiggelman, Vincent"]
[Black "Catalan, Ciro"]
[Result "1-0"]
[TimeControl "40/90m+30sec/move"]
[WhiteElo "1394"]
[BlackElo "1503"]

1. e4 {[%clk 01:30:59]} {[%emt 00:00:02]} c5 {[%clk 01:30:57]} {[%emt
00:00:03]} 2. Nc3 {[%clk 01:31:22]} {[%emt 00:00:07]} d6 {[%clk 01:31:24]}
{[%emt 00:00:03]} 3. Bc4 {[%clk 01:31:46]} {[%emt 00:00:06]} Nf6 {[%clk
01:31:50]} {[%emt 00:00:04]} 4. d3 {[%clk 01:31:58]} {[%emt 00:00:18]} a6
{[%clk 01:32:15]} {[%emt 00:00:06]} 5. a3 {[%clk 01:28:34]} {[%emt 00:03:54]}
e6 {[%clk 01:32:35]} {[%emt 00:00:09]} 6. f4 {[%clk 01:28:53]} {[%emt
00:00:11]} d5 {[%clk 01:30:33]} {[%emt 00:02:32]} 7. Ba2 {[%clk 01:24:56]}
{[%emt 00:04:27]} dxe4 {[%clk 01:30:36]} {[%emt 00:00:27]} 8. dxe4 {[%clk
01:21:59]} {[%emt 00:03:26]} Qxd1+ {[%clk 01:30:26]} {[%emt 00:00:40]} 9. Kxd1
{[%clk 01:22:08]} {[%emt 00:00:22]} b5 {[%clk 01:28:44]} {[%emt 00:02:12]} 10.
e5 {[%clk 00:56:29]} {[%emt 00:26:09]} Bb7 {[%clk 01:28:08]} {[%emt 00:01:06]}
11. Nf3 {[%clk 00:55:55]} {[%emt 00:01:03]} Ng4 {[%clk 01:15:05]} {[%emt
00:13:33]} 12. Ke2 {[%clk 00:54:27]} {[%emt 00:01:58]} Nh6 {[%clk 01:12:16]}
{[%emt 00:03:20]} 13. Be3 {[%clk 00:36:51]} {[%emt 00:18:05]} Nf5 {[%clk
01:00:39]} {[%emt 00:12:08]} 14. Bf2 {[%clk 00:35:25]} {[%emt 00:01:56]} Nc6
{[%clk 00:49:26]} {[%emt 00:11:43]} 15. Rad1 {[%clk 00:33:57]} {[%emt
00:01:58]} h5 {[%clk 00:43:34]} {[%emt 00:06:21]} 16. Ne4 {[%clk 00:25:26]}
{[%emt 00:09:00]} Ncd4+ {[%clk 00:39:49]} {[%emt 00:04:16]} 17. Nxd4 {[%clk
00:20:55]} {[%emt 00:05:01]} Nxd4+ {[%clk 00:39:23]} {[%emt 00:00:57]} 18. Bxd4
{[%clk 00:20:13]} {[%emt 00:01:12]} Bxe4 {[%clk 00:38:00]} {[%emt 00:01:52]} 19.
Bf2 {[%clk 00:12:45]} {[%emt 00:07:58]} Bxg2 {[%clk 00:36:31]} {[%emt
00:01:59]} 20. Rhg1 {[%clk 00:12:42]} {[%emt 00:00:33]} Bc6 {[%clk 00:36:11]}
{[%emt 00:00:50]} 21. Bh4 {[%clk 00:10:05]} {[%emt 00:03:07]} g6 {[%clk
00:21:04]} {[%emt 00:15:38]} 22. Bf6 {[%clk 00:09:30]} {[%emt 00:01:03]} Rg8
{[%clk 00:19:12]} {[%emt 00:02:22]} 23. f5 {[%clk 00:06:44]} {[%emt 00:03:17]}
c4 {[%clk 00:13:00]} {[%emt 00:06:43]} 24. Rd2 {[%clk 00:02:21]} {[%emt
00:04:53]} Be7 {[%clk 00:07:57]} {[%emt 00:05:32]} 25. Bxe7 {[%clk 00:02:22]}
{[%emt 00:00:29]} Kxe7 {[%clk 00:08:26]} {[%emt 00:00:01]} 26. f6+ {[%clk
00:02:40]} {[%emt 00:00:12]} Ke8 {[%clk 00:08:14]} {[%emt 00:00:40]} 27. Rd6
{[%clk 00:02:30]} {[%emt 00:00:42]} Bd5 {[%clk 00:07:24]} {[%emt 00:01:21]} 28.
c3 {[%clk 00:01:55]} {[%emt 00:01:04]} g5 {[%clk 00:06:21]} {[%emt 00:01:33]}
29. Bb1 {[%clk 00:02:03]} {[%emt 00:00:22]} Ra7 {[%clk 00:05:02]} {[%emt
00:01:49]} 30. Bh7 {[%clk 00:01:56]} {[%emt 00:00:37]} Rh8 {[%clk 00:02:23]}
{[%emt 00:03:09]} 31. Bc2 {[%clk 00:02:00]} {[%emt 00:00:27]} g4 {[%clk
00:02:20]} {[%emt 00:00:33]} 32. Ke3 {[%clk 00:02:05]} {[%emt 00:00:24]} Rg8
{[%clk 00:01:39]} {[%emt 00:01:11]} 33. Bh7 {[%clk 00:01:51]} {[%emt 00:00:44]}
Rh8 {[%clk 00:01:51]} {[%emt 00:00:18]} 34. Bc2 {[%clk 00:02:15]} {[%emt
00:00:07]} Ra8 {[%clk 00:01:59]} {[%emt 00:00:22]} 35. Kf4 {[%clk 00:02:24]}
{[%emt 00:00:21]} Bb7 {[%clk 00:01:21]} {[%emt 00:01:06]} 36. Rgd1 {[%clk
00:02:31]} {[%emt 00:00:24]} Bd5 {[%clk 00:01:14]} {[%emt 00:00:36]} 37. Rg1
{[%clk 00:00:47]} {[%emt 00:02:16]} Bf3 {[%clk 00:01:01]} {[%emt 00:00:43]} 38.
Be4 {[%clk 00:00:39]} {[%emt 00:00:37]} Bxe4 {[%clk 00:01:19]} {[%emt
00:00:12]} 39. Kxe4 {[%clk 00:01:04]} {[%emt 00:00:05]} Rg8 {[%clk 00:01:09]}
{[%emt 00:00:40]} 40. Kf4 {[%clk 00:01:17]} {[%emt 00:00:18]} Rg6 {[%clk
00:01:04]} {[%emt 00:00:43]} 41. h3 {[%clk 00:00:59]} {[%emt 00:00:40]} gxh3
{[%clk 00:00:56]} {[%emt 00:00:39]} 42. Rxg6 {[%clk 00:01:06]} {[%emt
00:00:22]} fxg6 {[%clk 00:01:18]} {[%emt 00:00:08]} 43. Kg3 {[%clk 00:01:02]}
{[%emt 00:00:35]} Kf7 {[%clk 00:01:07]} {[%emt 00:00:41]} 44. Rd7+ {[%clk
00:00:57]} {[%emt 00:00:35]} Ke8 {[%clk 00:00:46]} {[%emt 00:00:50]} 45. Re7+
{[%clk 00:01:21]} {[%emt 00:00:06]} Kf8 {[%clk 00:00:46]} {[%emt 00:00:26]} 46.
Rxe6 {[%clk 00:01:23]} {[%emt 00:00:32]} Rd8 {[%clk 00:00:44]} {[%emt
00:00:32]} 47. Rd6 {[%clk 00:01:46]} {[%emt 00:00:07]} Rxd6 {[%clk 00:00:40]}
{[%emt 00:00:34]} 48. exd6 {[%clk 00:02:11]} {[%emt 00:00:05]} Ke8 {[%clk
00:01:00]} {[%emt 00:00:11]} 49. Kxh3 {[%clk 00:02:34]} {[%emt 00:00:06]} g5
{[%clk 00:01:03]} {[%emt 00:00:27]} 50. Kg3 {[%clk 00:02:57]} {[%emt 00:00:08]}
g4 {[%clk 00:00:38]} {[%emt 00:00:54]} 51. Kh4 {[%clk 00:03:19]} {[%emt
00:00:08]} a5 {[%clk 00:00:45]} {[%emt 00:00:24]} 52. Kg3 {[%emt 00:00:28]} 1-0

[Event "NJSK 2018 Jeugd C"]
[Site "Assen, Netherlands"]
[Date "2018.05.05"]
[Round "9.1"]
[White "Brandsma, Romayn"]
[Black "Van Foreest, Machteld"]
[Result "0-1"]
[TimeControl "40/90m+30sec/move"]
[WhiteElo "1715"]
[BlackElo "2132"]

1. e4 {[%clk 01:30:54]} {[%emt 00:00:23]} e5 {[%clk 01:30:58]} {[%emt
00:00:21]} 2. Nf3 {[%clk 01:31:12]} {[%emt 00:00:24]} Nc6 {[%clk 01:31:25]}
{[%emt 00:00:06]} 3. Bc4 {[%clk 01:31:22]} {[%emt 00:00:27]} Bc5 {[%clk
01:31:50]} {[%emt 00:00:08]} 4. Nc3 {[%clk 01:31:26]} {[%emt 00:00:31]} Nf6
{[%clk 01:32:12]} {[%emt 00:00:08]} 5. d3 {[%clk 01:31:36]} {[%emt 00:00:26]}
d6 {[%clk 01:32:31]} {[%emt 00:00:14]} 6. Bg5 {[%clk 01:31:45]} {[%emt
00:00:29]} h6 {[%clk 01:32:56]} {[%emt 00:00:03]} 7. Bxf6 {[%clk 01:31:50]}
{[%emt 00:00:23]} Qxf6 {[%clk 01:33:23]} {[%emt 00:00:01]} 8. Nd5 {[%clk
01:31:57]} {[%emt 00:00:25]} Qd8 {[%clk 01:33:50]} {[%emt 00:00:05]} 9. c3
{[%clk 01:31:37]} {[%emt 00:01:05]} Ne7 {[%clk 01:33:35]} {[%emt 00:00:46]} 10.
Nxe7 {[%clk 01:28:58]} {[%emt 00:02:21]} Qxe7 {[%clk 01:31:05]} {[%emt
00:00:12]} 11. a4 {[%clk 01:27:28]} a5 {[%clk 01:31:05]} 12. Qc2 {[%clk
01:27:28]} Bg4 {[%clk 01:31:05]} 13. Qb3 {[%clk 01:27:28]} Bxf3 {[%clk
01:31:05]} 14. Qxb7 {[%clk 01:27:28]} O-O {[%clk 01:31:05]} 15. gxf3 {[%clk
01:27:28]} Rab8 {[%clk 01:31:05]} 16. Qd5 {[%clk 01:27:28]} Bxf2+ {[%clk
01:31:05]} 17. Kf1 {[%clk 01:27:28]} Rxb2 {[%clk 01:31:05]} 18. d4 {[%clk
01:27:28]} Qh4 {[%clk 01:31:05]} 19. h3 {[%clk 01:27:28]} Be3 {[%clk 01:31:05]}
0-1